[Event "Live Chess"]
[Site "Chess.com"]
[Date "2024.06.02"]
[Round "-"]
[White "Brooms1989"]
[Black "booktrunk"]
[Result "1-0"]
[WhiteElo "1209"]
[BlackElo "1493"]
[TimeControl "300"]
[EndTime "3:03:39 PDT"]
[Termination "Brooms1989 won by checkmate"]

1. e4 {[%clk 0:04:57.7]} 1... b6 {[%clk 0:04:58.2]} 2. d4 {[%clk 0:04:55.8]}
2... Bb7 {[%clk 0:04:55]} 3. Nc3 {[%clk 0:04:55.3]} 3... e6 {[%clk 0:04:49.9]}
4. Bd3 {[%clk 0:04:51.4]} 4... h6 {[%clk 0:04:47.3]} 5. Nge2 {[%clk 0:04:49.8]}
5... Nf6 {[%clk 0:04:46]} 6. O-O {[%clk 0:04:45.4]} 6... Bb4 {[%clk 0:04:44.5]}
7. a3 {[%clk 0:04:42.9]} 7... Be7 {[%clk 0:04:41.1]} 8. Bf4 {[%clk 0:04:31.4]}
8... Nh5 {[%clk 0:04:28]} 9. Bg3 {[%clk 0:04:29.9]} 9... Nxg3 {[%clk 0:04:26.6]}
10. fxg3 {[%clk 0:04:29.6]} 10... d6 {[%clk 0:04:21.9]} 11. Nf4 {[%clk
0:04:26.1]} 11... Nd7 {[%clk 0:04:19.8]} 12. Qf3 {[%clk 0:04:13.3]} 12... e5
{[%clk 0:04:14.2]} 13. Ne6 {[%clk 0:04:00.3]} 13... f6 {[%clk 0:03:35]} 14. Nxd8
{[%clk 0:03:58.3]} 14... Kxd8 {[%clk 0:03:31.9]} 15. dxe5 {[%clk 0:03:56.2]}
15... dxe5 {[%clk 0:03:29.7]} 16. Nd5 {[%clk 0:03:53.1]} 16... Bd6 {[%clk
0:03:26.1]} 17. b4 {[%clk 0:03:40.1]} 17... a6 {[%clk 0:03:23.6]} 18. c4 {[%clk
0:03:38.4]} 18... c6 {[%clk 0:03:12.9]} 19. Nc3 {[%clk 0:03:29.3]} 19... a5
{[%clk 0:03:11.4]} 20. b5 {[%clk 0:03:21]} 20... cxb5 {[%clk 0:03:09]} 21. cxb5
{[%clk 0:03:20.9]} 21... Nc5 {[%clk 0:03:04.1]} 22. a4 {[%clk 0:03:16.9]} 22...
Nb3 {[%clk 0:03:01.3]} 23. Rad1 {[%clk 0:03:10.2]} 23... Rf8 {[%clk 0:02:55]}
24. Nd5 {[%clk 0:03:04.8]} 24... Bc7 {[%clk 0:02:45.4]} 25. Nxc7 {[%clk
0:03:03.3]} 25... Kxc7 {[%clk 0:02:44]} 26. Qg4 {[%clk 0:02:57.4]} 26... Rf7
{[%clk 0:02:40.5]} 27. Qg6 {[%clk 0:02:55.7]} 27... Re7 {[%clk 0:02:37.9]} 28.
Bc4 {[%clk 0:02:48.1]} 28... Nd4 {[%clk 0:02:34.2]} 29. Rd2 {[%clk 0:02:42.6]}
29... Rf8 {[%clk 0:02:29.6]} 30. Rfd1 {[%clk 0:02:39.6]} 30... Rd8 {[%clk
0:02:24.3]} 31. Bd5 {[%clk 0:02:34.6]} 31... Bxd5 {[%clk 0:02:21.6]} 32. exd5
{[%clk 0:02:34.5]} 32... Rxd5 {[%clk 0:02:20.2]} 33. Rxd4 {[%clk 0:02:29.7]}
33... exd4 {[%clk 0:02:13.1]} 34. Qc2+ {[%clk 0:02:23.7]} 34... Rc5 {[%clk
0:02:10.4]} 35. Qf2 {[%clk 0:02:21.3]} 35... Rd7 {[%clk 0:02:04.8]} 36. Qf4+
{[%clk 0:02:15.6]} 36... Kc8 {[%clk 0:02:00.3]} 37. Rxd4 {[%clk 0:02:13.1]}
37... Rc1+ {[%clk 0:01:57.2]} 38. Kf2 {[%clk 0:02:11.2]} 38... Rc2+ {[%clk
0:01:54.5]} 39. Kf3 {[%clk 0:02:09.3]} 39... Rc3+ {[%clk 0:01:52.9]} 40. Kg4
{[%clk 0:02:07.5]} 40... h5+ {[%clk 0:01:48.2]} 41. Kxh5 {[%clk 0:02:01.9]}
41... Rc5+ {[%clk 0:01:45.5]} 42. Kg6 {[%clk 0:01:58.8]} 42... Rg5+ {[%clk
0:01:40.8]} 43. Qxg5 {[%clk 0:01:48.7]} 43... fxg5 {[%clk 0:01:38.1]} 44. Rxd7
{[%clk 0:01:47.7]} 44... Kxd7 {[%clk 0:01:36.6]} 45. Kxg7 {[%clk 0:01:46.2]}
45... Kd6 {[%clk 0:01:35.4]} 46. h4 {[%clk 0:01:42.8]} 46... Kc5 {[%clk
0:01:35.3]} 47. h5 {[%clk 0:01:42]} 47... Kb4 {[%clk 0:01:35.2]} 48. h6 {[%clk
0:01:41.5]} 48... Kxa4 {[%clk 0:01:35.1]} 49. h7 {[%clk 0:01:41.2]} 49... Kb4
{[%clk 0:01:35]} 50. h8=Q {[%clk 0:01:40.5]} 50... a4 {[%clk 0:01:32.1]} 51. Qa8
{[%clk 0:01:36.5]} 51... a3 {[%clk 0:01:32]} 52. Kg6 {[%clk 0:01:35]} 52... Kb3
{[%clk 0:01:30.6]} 53. Kxg5 {[%clk 0:01:33.9]} 53... Kb2 {[%clk 0:01:29.2]} 54.
Kf6 {[%clk 0:01:33.3]} 54... a2 {[%clk 0:01:28.5]} 55. Ke6 {[%clk 0:01:32.8]}
55... a1=Q {[%clk 0:01:26.7]} 56. Qxa1+ {[%clk 0:01:31.6]} 56... Kxa1 {[%clk
0:01:26.6]} 57. Kd6 {[%clk 0:01:30.7]} 57... Kb2 {[%clk 0:01:26.5]} 58. Kc6
{[%clk 0:01:30.2]} 58... Kb3 {[%clk 0:01:26.4]} 59. Kxb6 {[%clk 0:01:29.6]}
59... Kb4 {[%clk 0:01:26.3]} 60. g4 {[%clk 0:01:28.5]} 60... Kc4 {[%clk
0:01:26.2]} 61. g5 {[%clk 0:01:27.9]} 61... Kd5 {[%clk 0:01:25.5]} 62. g6 {[%clk
0:01:26.5]} 62... Ke6 {[%clk 0:01:25.4]} 63. Kc7 {[%clk 0:01:25.9]} 63... Kf6
{[%clk 0:01:24.5]} 64. b6 {[%clk 0:01:25.8]} 64... Kxg6 {[%clk 0:01:23.8]} 65.
b7 {[%clk 0:01:25.7]} 65... Kg5 {[%clk 0:01:23.5]} 66. b8=Q {[%clk 0:01:25.6]}
66... Kg4 {[%clk 0:01:23.2]} 67. Qg8+ {[%clk 0:01:24.5]} 67... Kf4 {[%clk
0:01:21.8]} 68. g3+ {[%clk 0:01:23.8]} 68... Kf5 {[%clk 0:01:20.4]} 69. g4+
{[%clk 0:01:23.7]} 69... Kf4 {[%clk 0:01:19.7]} 70. g5 {[%clk 0:01:23.6]} 70...
Kg4 {[%clk 0:01:18.7]} 71. g6 {[%clk 0:01:23.5]} 71... Kg5 {[%clk 0:01:18.3]}
72. g7 {[%clk 0:01:23.4]} 72... Kg6 {[%clk 0:01:17.7]} 73. Qf8 {[%clk
0:01:22.1]} 73... Kh7 {[%clk 0:01:16.5]} 74. g8=Q# {[%clk 0:01:20.6]} 1-0

[Event "Live Chess"]
[Site "Chess.com"]
[Date "2024.06.02"]
[Round "-"]
[White "ZatixMajor"]
[Black "friarnator"]
[Result "1-0"]
[WhiteElo "2040"]
[BlackElo "2195"]
[TimeControl "300"]
[EndTime "3:03:42 PDT"]
[Termination "ZatixMajor won by checkmate"]

1. c4 {[%clk 0:04:55.4]} 1... Nf6 {[%clk 0:04:59]} 2. g3 {[%clk 0:04:54.1]} 2...
c6 {[%clk 0:04:56.9]} 3. Nf3 {[%clk 0:04:51.3]} 3... d5 {[%clk 0:04:56.8]} 4.
Bg2 {[%clk 0:04:49.8]} 4... g6 {[%clk 0:04:54.1]} 5. O-O {[%clk 0:04:45.8]} 5...
Bg7 {[%clk 0:04:53]} 6. d3 {[%clk 0:04:40.2]} 6... O-O {[%clk 0:04:52]} 7. Bf4
{[%clk 0:04:33.2]} 7... Nbd7 {[%clk 0:04:46.7]} 8. Nc3 {[%clk 0:04:32.2]} 8...
a6 {[%clk 0:04:40.6]} 9. cxd5 {[%clk 0:04:30]} 9... Nxd5 {[%clk 0:04:38.2]} 10.
Nxd5 {[%clk 0:04:28.8]} 10... cxd5 {[%clk 0:04:38.1]} 11. Qb3 {[%clk 0:04:26.1]}
11... e5 {[%clk 0:04:35.2]} 12. Bd2 {[%clk 0:04:16.7]} 12... Nc5 {[%clk
0:04:32.1]} 13. Qa3 {[%clk 0:04:11.6]} 13... Ne6 {[%clk 0:04:24.7]} 14. Rac1
{[%clk 0:04:04.9]} 14... Bd7 {[%clk 0:04:21]} 15. Bb4 {[%clk 0:03:56.2]} 15...
Re8 {[%clk 0:04:19.5]} 16. Bd6 {[%clk 0:03:55.7]} 16... Bc6 {[%clk 0:04:17.4]}
17. Nxe5 {[%clk 0:03:52.5]} 17... Nd4 {[%clk 0:04:10.7]} 18. Nxc6 {[%clk
0:03:32.5]} 18... Nxe2+ {[%clk 0:04:06.2]} 19. Kh1 {[%clk 0:03:32]} 19... bxc6
{[%clk 0:04:05.5]} 20. Rxc6 {[%clk 0:03:26.6]} 20... Nd4 {[%clk 0:03:56.6]} 21.
Rxa6 {[%clk 0:03:22.3]} 21... Rc8 {[%clk 0:03:38.8]} 22. Bxd5 {[%clk 0:03:20.1]}
22... Nb5 {[%clk 0:03:35.8]} 23. Bxf7+ {[%clk 0:03:12.6]} 23... Kh8 {[%clk
0:03:23.6]} 24. Qb4 {[%clk 0:03:08.4]} 24... Nxd6 {[%clk 0:02:56.6]} 25. Rxd6
{[%clk 0:03:00.5]} 25... Qe7 {[%clk 0:02:42.9]} 26. Bxe8 {[%clk 0:02:53.2]}
26... Rxe8 {[%clk 0:02:39.4]} 27. Rb6 {[%clk 0:02:50.7]} 27... Qe2 {[%clk
0:02:35.1]} 28. Rg1 {[%clk 0:02:13.2]} 28... Qf3+ {[%clk 0:02:13.1]} 29. Rg2
{[%clk 0:02:10.7]} 29... Qd1+ {[%clk 0:02:13]} 30. Rg1 {[%clk 0:02:09.1]} 30...
Qxd3 {[%clk 0:02:12.9]} 31. Qf4 {[%clk 0:02:00.2]} 31... Qd5+ {[%clk 0:02:06.9]}
32. f3 {[%clk 0:01:54.2]} 32... Rf8 {[%clk 0:02:04.1]} 33. Qe4 {[%clk
0:01:50.1]} 33... Qh5 {[%clk 0:01:40.2]} 34. Rb7 {[%clk 0:01:43]} 34... h6
{[%clk 0:01:08]} 35. Rc1 {[%clk 0:01:33.9]} 35... Rxf3 {[%clk 0:00:56.7]} 36.
Rc8+ {[%clk 0:00:48.2]} 36... Kh7 {[%clk 0:00:53.1]} 37. Rcc7 {[%clk 0:00:44.2]}
37... Rf1+ {[%clk 0:00:10.8]} 38. Kg2 {[%clk 0:00:43]} 38... Rf2+ {[%clk
0:00:07.8]} 39. Kxf2 {[%clk 0:00:39.8]} 39... Qxh2+ {[%clk 0:00:07.7]} 40. Qg2
{[%clk 0:00:38.1]} 40... Qxg2+ {[%clk 0:00:06.3]} 41. Kxg2 {[%clk 0:00:37.4]}
41... h5 {[%clk 0:00:06.2]} 42. Rxg7+ {[%clk 0:00:36.4]} 42... Kh6 {[%clk
0:00:06.1]} 43. Rh7+ {[%clk 0:00:36.3]} 43... Kg5 {[%clk 0:00:05.5]} 44. Rb5+
{[%clk 0:00:35.8]} 44... Kf6 {[%clk 0:00:04.7]} 45. Rb6+ {[%clk 0:00:34.2]}
45... Kg5 {[%clk 0:00:04.6]} 46. Rg7 {[%clk 0:00:32.7]} 46... Kf5 {[%clk
0:00:03.5]} 47. Rgxg6 {[%clk 0:00:31.9]} 47... Ke5 {[%clk 0:00:03.4]} 48. Rg5+
{[%clk 0:00:30.8]} 48... Ke4 {[%clk 0:00:02.9]} 49. Rxh5 {[%clk 0:00:30.3]}
49... Kd4 {[%clk 0:00:02.8]} 50. Rc6 {[%clk 0:00:28.5]} 50... Ke4 {[%clk
0:00:02.7]} 51. g4 {[%clk 0:00:27.3]} 51... Kd4 {[%clk 0:00:02.6]} 52. g5 {[%clk
0:00:26.7]} 52... Ke4 {[%clk 0:00:02.5]} 53. g6 {[%clk 0:00:26.1]} 53... Kd4
{[%clk 0:00:02.4]} 54. g7 {[%clk 0:00:25.2]} 54... Ke4 {[%clk 0:00:02.3]} 55.
g8=Q {[%clk 0:00:24.1]} 55... Kd3 {[%clk 0:00:02.2]} 56. Qd5+ {[%clk 0:00:23.4]}
56... Ke3 {[%clk 0:00:01.2]} 57. Re5+ {[%clk 0:00:22.7]} 57... Kf4 {[%clk
0:00:00.1]} 58. Qe4# {[%clk 0:00:21.4]} 1-0

[Event "Live Chess"]
[Site "Chess.com"]
[Date "2024.06.02"]
[Round "-"]
[White "raimundklein"]
[Black "GwaryTek"]
[Result "0-1"]
[WhiteElo "1553"]
[BlackElo "1875"]
[TimeControl "300"]
[EndTime "3:03:46 PDT"]
[Termination "GwaryTek won by checkmate"]

1. e4 {[%clk 0:04:57.1]} 1... d5 {[%clk 0:04:59.9]} 2. exd5 {[%clk 0:04:55.4]}
2... Nf6 {[%clk 0:04:59.8]} 3. c4 {[%clk 0:04:51.5]} 3... c6 {[%clk 0:04:59]} 4.
dxc6 {[%clk 0:04:48.1]} 4... Nxc6 {[%clk 0:04:58.9]} 5. Nc3 {[%clk 0:04:46]}
5... e5 {[%clk 0:04:57.5]} 6. Nf3 {[%clk 0:04:40.1]} 6... e4 {[%clk 0:04:54.3]}
7. Ng5 {[%clk 0:04:38.4]} 7... Bf5 {[%clk 0:04:48.8]} 8. h4 {[%clk 0:04:30.1]}
8... h6 {[%clk 0:04:43.2]} 9. Nh3 {[%clk 0:04:28.3]} 9... Bc5 {[%clk 0:04:42.5]}
10. Be2 {[%clk 0:04:25.8]} 10... Qe7 {[%clk 0:04:27.3]} 11. O-O {[%clk
0:04:19.4]} 11... O-O-O {[%clk 0:04:23.4]} 12. g4 {[%clk 0:04:06.4]} 12... Bg6
{[%clk 0:04:10.1]} 13. Nf4 {[%clk 0:04:04.3]} 13... Qe5 {[%clk 0:04:04.7]} 14.
Nxg6 {[%clk 0:04:01]} 14... fxg6 {[%clk 0:04:04.6]} 15. Kg2 {[%clk 0:02:49.7]}
15... Nd4 {[%clk 0:03:52.9]} 16. f4 {[%clk 0:02:40.3]} 16... exf3+ {[%clk
0:03:46.4]} 17. Bxf3 {[%clk 0:02:40.2]} 17... Bd6 {[%clk 0:03:35.2]} 18. Be2
{[%clk 0:02:40.1]} 18... Qg3+ {[%clk 0:03:25.3]} 19. Kh1 {[%clk 0:02:34.3]}
19... Qh2# {[%clk 0:03:25.2]} 0-1

[Event "Live Chess"]
[Site "Chess.com"]
[Date "2024.06.02"]
[Round "-"]
[White "halfberg"]
[Black "PatientChessPapa"]
[Result "1-0"]
[WhiteElo "1897"]
[BlackElo "797"]
[TimeControl "300"]
[EndTime "3:04:01 PDT"]
[Termination "halfberg won by checkmate"]

1. e4 {[%clk 0:04:54.9]} 1... d5 {[%clk 0:04:58.7]} 2. exd5 {[%clk 0:04:53.2]}
2... Nf6 {[%clk 0:04:57.6]} 3. d4 {[%clk 0:04:51]} 3... Qxd5 {[%clk 0:04:55.4]}
4. Nf3 {[%clk 0:04:49.6]} 4... Bg4 {[%clk 0:04:53.4]} 5. Be2 {[%clk 0:04:48.5]}
5... Nc6 {[%clk 0:04:51.7]} 6. c4 {[%clk 0:04:44.6]} 6... Qh5 {[%clk 0:04:46.9]}
7. Be3 {[%clk 0:04:42.7]} 7... O-O-O {[%clk 0:04:44.6]} 8. Nbd2 {[%clk
0:04:40.4]} 8... e5 {[%clk 0:04:28.9]} 9. d5 {[%clk 0:04:38.1]} 9... e4 {[%clk
0:04:00.2]} 10. dxc6 {[%clk 0:04:27.9]} 10... exf3 {[%clk 0:03:42.5]} 11. cxb7+
{[%clk 0:04:24.8]} 11... Kb8 {[%clk 0:03:40.4]} 12. Qa4 {[%clk 0:04:21]} 12...
fxe2 {[%clk 0:03:28.2]} 13. Qxa7# {[%clk 0:04:16.6]} 1-0

[Event "Live Chess"]
[Site "Chess.com"]
[Date "2024.06.02"]
[Round "-"]
[White "Ferrarifan27"]
[Black "Kyrylo7770"]
[Result "1-0"]
[WhiteElo "2139"]
[BlackElo "1618"]
[TimeControl "300"]
[EndTime "3:04:42 PDT"]
[Termination "Ferrarifan27 won by checkmate"]

1. e4 {[%clk 0:04:57.2]} 1... c6 {[%clk 0:04:59.4]} 2. d4 {[%clk 0:04:55.6]}
2... d5 {[%clk 0:04:59]} 3. e5 {[%clk 0:04:55]} 3... e6 {[%clk 0:04:55.8]} 4.
Nf3 {[%clk 0:04:50]} 4... Ne7 {[%clk 0:04:54.7]} 5. Bd3 {[%clk 0:04:46.5]} 5...
Ng6 {[%clk 0:04:52.4]} 6. O-O {[%clk 0:04:43.3]} 6... c5 {[%clk 0:04:51.7]} 7.
c3 {[%clk 0:04:41.9]} 7... Nc6 {[%clk 0:04:50.9]} 8. a3 {[%clk 0:04:39.3]} 8...
cxd4 {[%clk 0:04:49.5]} 9. cxd4 {[%clk 0:04:38]} 9... Be7 {[%clk 0:04:45.2]} 10.
b4 {[%clk 0:04:36]} 10... O-O {[%clk 0:04:44]} 11. Nc3 {[%clk 0:04:34.6]} 11...
Nh4 {[%clk 0:04:39.4]} 12. Nxh4 {[%clk 0:04:27.2]} 12... Bxh4 {[%clk 0:04:38.6]}
13. Be3 {[%clk 0:04:23.4]} 13... Bg5 {[%clk 0:04:37.3]} 14. Rc1 {[%clk 0:04:13]}
14... a6 {[%clk 0:04:33.6]} 15. Qh5 {[%clk 0:04:11.5]} 15... Bxe3 {[%clk
0:04:32.6]} 16. Qxh7# {[%clk 0:04:10.3]} 1-0

[Event "Live Chess"]
[Site "Chess.com"]
[Date "2024.06.02"]
[Round "-"]
[White "Pandreq"]
[Black "Ocelot32"]
[Result "1-0"]
[WhiteElo "1220"]
[BlackElo "1352"]
[TimeControl "300"]
[EndTime "3:04:48 PDT"]
[Termination "Pandreq won by resignation"]

1. d4 {[%clk 0:04:57.4]} 1... Nf6 {[%clk 0:04:58.3]} 2. c4 {[%clk 0:04:56.8]}
2... e6 {[%clk 0:04:56.9]} 3. Nc3 {[%clk 0:04:56.2]} 3... d5 {[%clk 0:04:55.8]}
4. cxd5 {[%clk 0:04:55.2]} 4... exd5 {[%clk 0:04:54.6]} 5. Nf3 {[%clk
0:04:54.7]} 5... c6 {[%clk 0:04:50]} 6. Bf4 {[%clk 0:04:53.3]} 6... Bd6 {[%clk
0:04:48.7]} 7. Bxd6 {[%clk 0:04:52.1]} 7... Qxd6 {[%clk 0:04:48.5]} 8. e3 {[%clk
0:04:51]} 8... O-O {[%clk 0:04:46.9]} 9. Bd3 {[%clk 0:04:49.4]} 9... Bg4 {[%clk
0:04:44.1]} 10. O-O {[%clk 0:04:47.8]} 10... Nbd7 {[%clk 0:04:42.7]} 11. Bc2
{[%clk 0:04:46.5]} 11... Rfe8 {[%clk 0:04:40.7]} 12. h3 {[%clk 0:04:41.7]} 12...
Bh5 {[%clk 0:04:39]} 13. Re1 {[%clk 0:04:33.6]} 13... Re7 {[%clk 0:04:33.8]} 14.
e4 {[%clk 0:04:30.8]} 14... dxe4 {[%clk 0:04:30.9]} 15. Nxe4 {[%clk 0:04:29.6]}
15... Nxe4 {[%clk 0:04:29.1]} 16. Rxe4 {[%clk 0:04:26.2]} 16... Rae8 {[%clk
0:04:17.1]} 17. Rxe7 {[%clk 0:04:12.2]} 17... Rxe7 {[%clk 0:04:11.9]} 18. Qd3
{[%clk 0:04:10.5]} 18... Bg6 {[%clk 0:04:09.9]} 19. Qd2 {[%clk 0:04:08.1]} 19...
Bxc2 {[%clk 0:04:07.7]} 20. Qxc2 {[%clk 0:04:07.2]} 20... Nf6 {[%clk 0:04:05.4]}
21. Ne5 {[%clk 0:03:58.7]} 21... Nd5 {[%clk 0:03:55.5]} 22. Rd1 {[%clk
0:03:49.2]} 22... Qf6 {[%clk 0:03:49.6]} 23. Nf3 {[%clk 0:03:41.8]} 23... g6
{[%clk 0:03:43]} 24. Qd2 {[%clk 0:03:26.4]} 24... Nf4 {[%clk 0:03:37]} 25. Re1
{[%clk 0:03:20.5]} 25... Rxe1+ {[%clk 0:03:24.3]} 26. Qxe1 {[%clk 0:03:18.8]}
26... Ne6 {[%clk 0:03:19.7]} 27. Qe3 {[%clk 0:03:13]} 27... Qf5 {[%clk
0:03:08.8]} 28. a3 {[%clk 0:02:56]} 28... Qb1+ {[%clk 0:03:05.1]} 29. Kh2 {[%clk
0:02:51.8]} 29... Qxb2 {[%clk 0:03:03.8]} 30. g3 {[%clk 0:02:34]} 30... Qc2
{[%clk 0:02:37.9]} 31. Kg2 {[%clk 0:02:26.3]} 31... Qc4 {[%clk 0:02:25.5]} 32.
Qe5 {[%clk 0:02:07.4]} 32... Qa4 {[%clk 0:02:06.9]} 33. Qb8+ {[%clk 0:02:04.4]}
33... Kg7 {[%clk 0:02:05.6]} 34. Qe5+ {[%clk 0:01:58.8]} 34... Kg8 {[%clk
0:02:01.1]} 35. Qb8+ {[%clk 0:01:54.2]} 35... Kg7 {[%clk 0:01:58]} 36. Qe5+
{[%clk 0:01:47.7]} 36... Kh6 {[%clk 0:01:50.1]} 37. g4 {[%clk 0:01:40]} 37...
Qb5 {[%clk 0:01:47]} 38. g5+ {[%clk 0:01:38.2]} 38... Kh5 {[%clk 0:01:42.7]} 39.
Qg3 {[%clk 0:01:25.5]} 1-0

[Event "Live Chess"]
[Site "Chess.com"]
[Date "2024.06.02"]
[Round "-"]
[White "JohanKjeldahl"]
[Black "wadsy27"]
[Result "0-1"]
[WhiteElo "1805"]
[BlackElo "2573"]
[TimeControl "300"]
[EndTime "3:04:49 PDT"]
[Termination "wadsy27 won by resignation"]

1. c4 {[%clk 0:04:57.1]} 1... Nf6 {[%clk 0:04:59]} 2. Nc3 {[%clk 0:04:56]} 2...
e5 {[%clk 0:04:56.3]} 3. Nf3 {[%clk 0:04:53.6]} 3... e4 {[%clk 0:04:55.7]} 4.
Ng5 {[%clk 0:04:49.5]} 4... c6 {[%clk 0:04:55]} 5. Ngxe4 {[%clk 0:04:46.7]} 5...
Nxe4 {[%clk 0:04:54.9]} 6. Nxe4 {[%clk 0:04:44.8]} 6... d5 {[%clk 0:04:54.6]} 7.
cxd5 {[%clk 0:04:43.8]} 7... cxd5 {[%clk 0:04:54.5]} 8. Nc3 {[%clk 0:04:41.8]}
8... d4 {[%clk 0:04:53.4]} 9. Ne4 {[%clk 0:04:39.9]} 9... Nc6 {[%clk 0:04:53.1]}
10. d3 {[%clk 0:04:36.7]} 10... Bb4+ {[%clk 0:04:52.7]} 11. Bd2 {[%clk
0:04:35.7]} 11... Be7 {[%clk 0:04:52.4]} 12. g3 {[%clk 0:04:33.9]} 12... f5
{[%clk 0:04:51.3]} 13. Bg2 {[%clk 0:04:20.1]} 13... fxe4 {[%clk 0:04:47.2]} 14.
Bxe4 {[%clk 0:04:19]} 14... O-O {[%clk 0:04:42.3]} 15. O-O {[%clk 0:04:17.8]}
15... Kh8 {[%clk 0:04:40.9]} 16. a3 {[%clk 0:04:15.6]} 16... Bf5 {[%clk
0:04:39.5]} 17. Bg2 {[%clk 0:04:13.7]} 17... Qd7 {[%clk 0:04:38.8]} 18. b4
{[%clk 0:04:12.1]} 18... Bh3 {[%clk 0:04:38]} 19. Qb3 {[%clk 0:04:09.7]} 19...
Rf6 {[%clk 0:04:33.8]} 20. Rac1 {[%clk 0:04:05.8]} 20... Bxg2 {[%clk 0:04:28.8]}
21. Kxg2 {[%clk 0:04:04]} 21... a6 {[%clk 0:04:28.5]} 22. h4 {[%clk 0:03:58.6]}
22... Raf8 {[%clk 0:04:26]} 23. Bg5 {[%clk 0:03:47]} 23... Rf5 {[%clk
0:04:19.4]} 24. Bxe7 {[%clk 0:03:43]} 24... Qxe7 {[%clk 0:04:19.3]} 25. Qc4
{[%clk 0:03:33.5]} 25... Qxe2 {[%clk 0:04:16.7]} 26. Rce1 {[%clk 0:03:27.8]}
26... Rxf2+ {[%clk 0:04:14.7]} 0-1

[Event "Live Chess"]
[Site "Chess.com"]
[Date "2024.06.02"]
[Round "-"]
[White "bill77678"]
[Black "resipsa6"]
[Result "0-1"]
[WhiteElo "1839"]
[BlackElo "2034"]
[TimeControl "300"]
[EndTime "3:04:52 PDT"]
[Termination "resipsa6 won by resignation"]

1. e4 {[%clk 0:04:58.3]} 1... e5 {[%clk 0:04:59]} 2. Nf3 {[%clk 0:04:57.8]} 2...
Nf6 {[%clk 0:04:58.1]} 3. Nxe5 {[%clk 0:04:55.9]} 3... d6 {[%clk 0:04:56.9]} 4.
Nf3 {[%clk 0:04:54.9]} 4... Nxe4 {[%clk 0:04:56.3]} 5. Nc3 {[%clk 0:04:54.5]}
5... Nxc3 {[%clk 0:04:55.6]} 6. dxc3 {[%clk 0:04:54.2]} 6... Be7 {[%clk
0:04:55.1]} 7. Be3 {[%clk 0:04:52]} 7... O-O {[%clk 0:04:54.4]} 8. Qd2 {[%clk
0:04:50.4]} 8... Be6 {[%clk 0:04:53.8]} 9. Bd3 {[%clk 0:04:46.5]} 9... Nc6
{[%clk 0:04:53.2]} 10. O-O-O {[%clk 0:04:38.2]} 10... Ne5 {[%clk 0:04:51]} 11.
Nxe5 {[%clk 0:04:35.6]} 11... dxe5 {[%clk 0:04:50.9]} 12. Kb1 {[%clk 0:04:33.9]}
12... c6 {[%clk 0:04:44.4]} 13. h3 {[%clk 0:04:20.4]} 13... Qa5 {[%clk
0:04:41.2]} 14. b3 {[%clk 0:04:16.2]} 14... Rad8 {[%clk 0:04:36.4]} 15. Qe2
{[%clk 0:04:05.1]} 15... Bf6 {[%clk 0:04:34.2]} 16. g4 {[%clk 0:03:59.7]} 16...
e4 {[%clk 0:04:32.9]} 17. Bc4 {[%clk 0:03:55]} 17... Bxc3 {[%clk 0:04:29.9]} 18.
Bxe6 {[%clk 0:03:34.6]} 18... fxe6 {[%clk 0:04:26.9]} 19. h4 {[%clk 0:03:29.2]}
19... Qa3 {[%clk 0:04:22.5]} 20. Bc1 {[%clk 0:03:27.9]} 20... Qc5 {[%clk
0:04:08.3]} 21. Be3 {[%clk 0:03:10.7]} 21... Qa3 {[%clk 0:04:01.5]} 22. Bc1
{[%clk 0:03:09.1]} 22... Qb4 {[%clk 0:04:00.8]} 23. Qxe4 {[%clk 0:02:56.9]} 0-1

[Event "Live Chess"]
[Site "Chess.com"]
[Date "2024.06.02"]
[Round "-"]
[White "WeakOldFinished"]
[Black "Queensandpawns"]
[Result "1-0"]
[WhiteElo "2138"]
[BlackElo "2253"]
[TimeControl "300"]
[EndTime "3:04:52 PDT"]
[Termination "WeakOldFinished won by checkmate"]

1. d4 {[%clk 0:04:56.3]} 1... e5 {[%clk 0:04:59.9]} 2. dxe5 {[%clk 0:04:54.8]}
2... Nc6 {[%clk 0:04:52.2]} 3. Nf3 {[%clk 0:04:53.6]} 3... Qe7 {[%clk
0:04:52.1]} 4. Bf4 {[%clk 0:04:51.4]} 4... Qb4+ {[%clk 0:04:51.8]} 5. Bd2 {[%clk
0:04:50.6]} 5... Qxb2 {[%clk 0:04:51.7]} 6. Nc3 {[%clk 0:04:50.3]} 6... Nb4
{[%clk 0:04:51.4]} 7. Nd4 {[%clk 0:04:48.5]} 7... Na6 {[%clk 0:04:50.3]} 8. Rb1
{[%clk 0:04:42.5]} 8... Qa3 {[%clk 0:04:49.4]} 9. Ndb5 {[%clk 0:04:26.1]} 9...
Qe7 {[%clk 0:04:48.3]} 10. Nd5 {[%clk 0:04:22.6]} 10... Qd8 {[%clk 0:04:36.6]}
11. e4 {[%clk 0:03:53]} 11... c6 {[%clk 0:04:34.6]} 12. Nd4 {[%clk 0:03:48.2]}
12... cxd5 {[%clk 0:04:33.5]} 13. Bxa6 {[%clk 0:03:47.5]} 13... bxa6 {[%clk
0:04:32.9]} 14. exd5 {[%clk 0:03:46.9]} 14... Bc5 {[%clk 0:04:29.4]} 15. Nf5
{[%clk 0:03:45.1]} 15... g6 {[%clk 0:04:19.2]} 16. Qg4 {[%clk 0:03:43.5]} 16...
d6 {[%clk 0:04:13]} 17. e6 {[%clk 0:03:40.8]} 17... fxe6 {[%clk 0:04:08.5]} 18.
dxe6 {[%clk 0:03:39.7]} 18... gxf5 {[%clk 0:03:45]} 19. Qh5+ {[%clk 0:03:38.3]}
19... Ke7 {[%clk 0:03:41.4]} 20. Qf7# {[%clk 0:03:37]} 1-0